fUSD/lending_fUSD_20260506
["ID","MTS","AMOUNT","RATE_DAILY","PERIOD"]
[421654204,1778029838000,-2200.0,0.00012192,2]
[421654206,1778029838000,-47376.56866115,0.0001228,2]
[421654207,1778029838000,-2092.17979885,0.0001228,2]
[421654205,1778029838000,-77.633307,0.00012192,2]
[421654209,1778029841000,-35611.9024461,0.0001228,2]
[421654232,1778029843000,-1358.95,0.00012568,2]
[421654237,1778029843000,-160.53,0.00012742,2]
[421654234,1778029843000,-500.0,0.00012622,2]
[421654238,1778029843000,-500.0,0.00012768,2]
[421654240,1778029843000,-168.84,0.00012848,2]
[421654239,1778029843000,-253.11164122,0.00012768,2]
[421654247,1778029843000,-2926.78,0.00013072,2]
[421654244,1778029843000,-338.63,0.00013055,2]
[421654245,1778029843000,-1000.0,0.00013071,2]
[421654241,1778029843000,-1358.95,0.00012875,2]
[421654242,1778029843000,-10281.99,0.00012883,2]
[421654248,1778029843000,-1358.95,0.00013181,2]
[421654231,1778029843000,-154.09,0.00012568,2]
[421654246,1778029843000,-1526.24,0.00013072,2]
[421654243,1778029843000,-200.0,0.00012917,2]
[421654249,1778029843000,-153.89794171,0.00013477,2]
[421654228,1778029843000,-150.0,0.00012434,2]
[421654236,1778029843000,-150.0,0.00012742,2]
[421654233,1778029843000,-222.3061,0.00012604,2]
[421654250,1778029843000,-15383.16221776,0.00013477,2]
[421654217,1778029843000,-32273.62044992,0.00012324,2]
[421654216,1778029843000,-49021.2386976,0.0001228,2]
[421654219,1778029843000,-300.0,0.00012336,2]
[421654218,1778029843000,-1200.0,0.00012336,2]
[421654220,1778029843000,-300.0,0.00012336,2]
[421654223,1778029843000,-2076.09,0.0001234,2]
[421654221,1778029843000,-2000.0,0.00012337,2]
[421654222,1778029843000,-426.7,0.00012337,2]
[421654225,1778029843000,-9999.99,0.00012384,2]
[421654224,1778029843000,-9999.99,0.00012384,2]
[421654227,1778029843000,-19999.99,0.00012385,2]
[421654226,1778029843000,-921.1,0.00012385,2]
[421654235,1778029843000,-166.67,0.00012629,2]
[421654230,1778029843000,-300.0,0.00012527,2]
[421654229,1778029843000,-1354.51,0.00012434,2]
[421654251,1778029843000,-1358.95,0.00013488,2]
[421654252,1778029843000,-150.0,0.00013488,2]
[421654260,1778029843000,-150.0,0.00013488,2]
[421654284,1778029843000,-500.0,0.00013568,2]
[421654289,1778029843000,-500.0,0.00013568,2]
[421654293,1778029843000,-500.0,0.00013568,2]
[421654291,1778029843000,-500.0,0.00013568,2]
[421654301,1778029843000,-500.0,0.00013568,2]
[421654296,1778029843000,-372.98747746,0.00013568,2]
[421654303,1778029843000,-500.0,0.00013568,2]
[421654304,1778029843000,-500.0,0.00013568,2]
[421654305,1778029843000,-1680.0,0.00013569,2]
[421654307,1778029843000,-150.0,0.00013581,2]
[421654308,1778029843000,-1431.2,0.0001362,2]
[421654309,1778029843000,-150.0,0.00013675,2]
[421654306,1778029843000,-9045.24,0.00013577,2]
[421654311,1778029843000,-500.0,0.00013698,2]
[421654254,1778029843000,-150.0,0.00013488,2]
[421654282,1778029843000,-500.0,0.00013568,2]
[421654267,1778029843000,-301.73208445,0.00013568,2]
[421654286,1778029843000,-500.0,0.00013568,2]
[421654269,1778029843000,-500.0,0.00013568,2]
[421654310,1778029843000,-500.0,0.00013698,2]
[421654261,1778029843000,-150.0,0.00013488,2]
[421654253,1778029843000,-150.0,0.00013488,2]
[421654255,1778029843000,-150.00000001,0.00013488,2]
[421654257,1778029843000,-250.23673418,0.00013488,2]
[421654278,1778029843000,-500.0,0.00013568,2]
[421654256,1778029843000,-150.00000001,0.00013488,2]
[421654259,1778029843000,-150.0,0.00013488,2]
[421654258,1778029843000,-150.0,0.00013488,2]
[421654262,1778029843000,-3128.3117544,0.00013545,2]
[421654265,1778029843000,-150.99,0.0001355,2]
[421654273,1778029843000,-500.0,0.00013568,2]
[421654276,1778029843000,-500.0,0.00013568,2]
[421654264,1778029843000,-4999.99,0.0001355,2]
[421654271,1778029843000,-500.0,0.00013568,2]
[421654280,1778029843000,-500.0,0.00013568,2]
[421654263,1778029843000,-6809.5725976,0.00013545,2]
[421654314,1778029844000,-165.03,0.00013699,2]
[421654317,1778029844000,-150.0,0.00013862,2]
[421654318,1778029844000,-2000.0,0.00013879,2]
[421654319,1778029844000,-150.0,0.00013956,2]
[421654315,1778029844000,-150.0,0.00013769,2]
[421654316,1778029844000,-255.0,0.00013838,2]
[421654313,1778029844000,-500.0,0.00013698,2]
[421654312,1778029844000,-500.0,0.00013698,2]
[421654323,1778029844000,-250.0,0.00014,2]
[421654322,1778029844000,-150.0,0.00013987,2]
[421654321,1778029844000,-151.0,0.0001396,2]
[421654325,1778029844000,-500.0,0.00014073,2]
[421654326,1778029844000,-182.19555402,0.00014094,2]
[421654327,1778029844000,-29776.37856376,0.00014097,2]
[421654324,1778029844000,-150.0,0.0001405,2]
[421654328,1778029844000,-5867.92450023,0.00014097,2]
[421654320,1778029844000,-181.94176995,0.0001396,2]
[421654330,1778029845000,-6893.74783601,0.00014097,2]
[421654332,1778029845000,-610.30955445,0.00014128,2]
[421654334,1778029845000,-310.0,0.00014137,3]
[421654338,1778029845000,-500.0,0.00014173,2]
[421654335,1778029845000,-150.0,0.00014143,2]
[421654333,1778029845000,-3307.91564261,0.00014128,2]
[421654331,1778029845000,-151.0,0.00014097,2]
[421654337,1778029845000,-500.0,0.00014173,2]
[421654339,1778029845000,-500.0,0.00014173,2]
[421654340,1778029845000,-221.1468794,0.00014173,2]
[421654341,1778029845000,-500.0,0.00014181,2]
[421654342,1778029845000,-500.0,0.00014194,2]
[421654343,1778029845000,-484.95319042,0.00014194,2]
[421654336,1778029845000,-500.0,0.00014173,2]
[421654346,1778029846000,-500.0,0.00014194,2]
[421654349,1778029846000,-1309.18199252,0.00014195,2]
[421654348,1778029846000,-57139.03390638,0.00014195,2]
[421654347,1778029846000,-500.0,0.00014194,2]
[421654344,1778029846000,-500.0,0.00014194,2]
[421654350,1778029846000,-14560.18953952,0.00014195,2]
[421654351,1778029846000,-156350.85657602,0.00014195,2]
[421654352,1778029846000,-252.89402284,0.00014195,2]
[421654345,1778029846000,-439.69770789,0.00014194,2]
[421654366,1778030152000,152.0,0.00022074,30]
[421654369,1778030685000,-152.0,0.00012727,7]
[421654368,1778030685000,-152.0,0.00012727,7]
[421654372,1778030685000,-500.0,0.00013005,2]
[421654370,1778030685000,-748.03,0.00012893,2]
[421654371,1778030685000,-1000.0,0.00012948,2]
[421654373,1778030685000,-500.0,0.00013038,2]
[421654375,1778030685000,-1447.97,0.00013096,2]
[421654374,1778030685000,-500.0,0.00013095,2]
[421654376,1778030687000,-571.206587,0.00013096,2]
[421654378,1778030687000,-748.03,0.00013216,2]
[421654377,1778030687000,-164.0962615,0.00013162,2]
[421654379,1778030687000,-160.53,0.00013262,2]
[421654381,1778030687000,-200.0,0.00013369,2]
[421654382,1778030687000,-991.21,0.00013481,2]
[421654383,1778030687000,-540.4671515,0.00013538,2]
[421654384,1778030687000,-207.5628485,0.00013538,2]
[421654386,1778030687000,-166.66,0.00013615,2]
[421654380,1778030687000,-1624.46,0.00013276,2]
[421654388,1778030687000,-1200.0,0.00013666,2]
[421654387,1778030687000,-300.0,0.00013665,2]
[421654389,1778030687000,-150.0,0.00013666,2]
[421654390,1778030687000,-500.0,0.00013667,2]
[421654392,1778030687000,-500.0,0.00013667,2]
[421654391,1778030687000,-500.0,0.00013667,2]
[421654393,1778030687000,-500.0,0.00013667,2]
[421654394,1778030687000,-500.0,0.00013667,2]
[421654395,1778030687000,-311.68089,0.00013667,2]
[421654385,1778030687000,-164.0962615,0.00013568,2]
[421654407,1778030688000,-304.73115934,0.00013667,2]
[421654403,1778030688000,-500.0,0.00013667,2]
[421654404,1778030688000,-500.0,0.00013667,2]
[421654405,1778030688000,-500.0,0.00013667,2]
[421654402,1778030688000,-500.0,0.00013667,2]
[421654397,1778030688000,-500.0,0.00013667,2]
[421654400,1778030688000,-500.0,0.00013667,2]
[421654401,1778030688000,-500.0,0.00013667,2]
[421654398,1778030688000,-500.0,0.00013667,2]
[421654396,1778030688000,-188.31911,0.00013667,2]
[421654409,1778030688000,-500.0,0.00013667,2]
[421654399,1778030688000,-500.0,0.00013667,2]
[421654408,1778030688000,-500.0,0.00013667,2]
[421654406,1778030688000,-311.68089,0.00013667,2]
[421654410,1778030688000,-500.0,0.00013667,2]
[421654411,1778030688000,-500.0,0.00013667,2]
[421654423,1778030688000,-500.0,0.00013667,2]
[421654422,1778030688000,-247.70844406,0.00013667,2]
[421654421,1778030688000,-500.0,0.00013667,2]
[421654420,1778030688000,-500.0,0.00013667,2]
[421654419,1778030688000,-500.0,0.00013667,2]
[421654418,1778030688000,-304.73115934,0.00013667,2]
[421654417,1778030688000,-195.26884066,0.00013667,2]
[421654413,1778030688000,-500.0,0.00013667,2]
[421654414,1778030688000,-500.0,0.00013667,2]
[421654415,1778030688000,-500.0,0.00013667,2]
[421654424,1778030688000,-500.0,0.00013667,2]
[421654412,1778030688000,-500.0,0.00013667,2]
[421654416,1778030688000,-500.0,0.00013667,2]
[421654427,1778030689000,-500.0,0.00013667,2]
[421654425,1778030689000,-500.0,0.00013667,2]
[421654428,1778030689000,-447.5603966,0.00013667,2]
[421654426,1778030689000,-500.0,0.00013667,2]
[421654429,1778030689000,-52.4396034,0.00013667,2]
[421654432,1778030689000,-2366.0052068,0.00013668,2]
[421654431,1778030689000,-2633.9947932,0.00013668,2]
[421654430,1778030689000,-4947.5603966,0.00013668,2]
[421654435,1778030691000,-5000.0,0.00013668,2]
[421654434,1778030691000,-5000.0,0.00013668,2]
[421654433,1778030691000,-5000.0,0.00013668,2]
[421654438,1778030692000,-5000.0,0.00013668,2]
[421654437,1778030692000,-5000.0,0.00013668,2]
[421654436,1778030692000,-5000.0,0.00013668,2]
[421654439,1778030693000,-5000.0,0.00013668,2]
[421654440,1778030693000,-5000.0,0.00013668,2]
[421654442,1778030693000,-218.0988493,0.00013668,2]
[421654441,1778030693000,-4781.9011507,0.00013668,2]
[421654448,1778030694000,-1154.3188493,0.00013668,2]
[421654447,1778030694000,-3845.6811507,0.00013668,2]
[421654446,1778030694000,-5000.0,0.00013668,2]
[421654445,1778030694000,-1154.3088493,0.00013668,2]
[421654443,1778030694000,-2845.7011507,0.00013668,2]
[421654444,1778030694000,-999.99,0.00013668,2]
[421654449,1778030695000,-2152.7411507,0.00013668,2]
[421654452,1778030695000,-5000.0,0.00013668,2]
[421654451,1778030695000,-5000.0,0.00013668,2]
[421654450,1778030695000,-2847.2588493,0.00013668,2]
[421654453,1778030696000,-5000.0,0.00013668,2]
[421654455,1778030696000,-5000.0,0.00013668,2]
[421654454,1778030696000,-5000.0,0.00013668,2]
[421654457,1778030697000,-5000.0,0.00013668,2]
[421654456,1778030697000,-5000.0,0.00013668,2]
[421654458,1778030698000,-5000.0,0.00013668,2]
[421654460,1778030700000,-5000.0,0.00013668,2]
[421654459,1778030700000,-5000.0,0.00013668,2]
[421654465,1778030701000,-5000.0,0.00013668,2]
[421654464,1778030701000,-3576.0,0.00013668,2]
[421654463,1778030701000,-1200.0,0.00013667,2]
[421654462,1778030701000,-224.0,0.00013667,2]
[421654461,1778030701000,-5000.0,0.00013668,2]
[421654467,1778030702000,-5000.0,0.00013668,2]
[421654466,1778030702000,-5000.0,0.00013668,2]
[421654468,1778030703000,-5000.0,0.00013668,2]
[421654469,1778030703000,-5000.0,0.00013668,2]
[421654471,1778030703000,-4850.0,0.00013668,2]
[421654470,1778030703000,-150.0,0.00013488,2]
[421654472,1778030704000,-5000.0,0.00013668,2]
[421654475,1778030705000,-979.2038361,0.00013668,2]
[421654474,1778030705000,-3802.2161639,0.00013668,2]
[421654473,1778030705000,-218.58,0.00013401,2]
[421654479,1778030706000,-2937.84370598,0.00013699,2]
[421654478,1778030706000,-224.30294412,0.00013683,2]
[421654477,1778030706000,-1837.8533499,0.00013668,2]
[421654476,1778030706000,-5000.0,0.00013668,2]
[421654480,1778030707000,-5000.0,0.00013699,2]
[421654483,1778030709000,-150.99,0.00013699,2]
[421654484,1778030709000,-1733.52370598,0.00013699,2]
[421654482,1778030709000,-2965.48629402,0.00013699,2]
[421654481,1778030709000,-150.0,0.00013488,2]
[421654485,1778030717000,-152.88062369,0.00013488,2]
[421654486,1778030717000,-150.0,0.00013488,2]
[421654488,1778030717000,-908.11937631,0.00013699,2]
[421654487,1778030717000,-150.0,0.00013488,2]
[421654490,1778030948000,-152.0,0.00012731,7]
[421654492,1778030948000,-1220.99,0.0001285,2]
[421654491,1778030948000,-200.0,0.00012834,2]
[421654493,1778030948000,-2000.0,0.00012903,2]
[421654489,1778030948000,-500.0,0.00012627,2]
[421654495,1778030948000,-5436.33,0.00013009,2]
[421654496,1778030948000,-150.41189386,0.00013488,2]
[421654497,1778030948000,-150.0,0.00013488,2]
[421654498,1778030948000,-150.0,0.00013488,2]
[421654494,1778030948000,-4042.85857845,0.00013,2]
[421654500,1778030954000,168.01,6.513e-05,2]
[421654499,1778030954000,222.092225,0.00012564,2]
[421654503,1778030955000,168.01,0.00013026,2]
[421654502,1778030955000,168.01,0.00010855,2]
[421654501,1778030955000,168.01,8.684e-05,2]
[421654504,1778031005000,1825.77158263,0.00013,15]
[421654505,1778031011000,41747.33647874,0.00012,2]
[421654507,1778031011000,55505.5381552,0.00012,2]
[421654506,1778031011000,4485.26990851,0.00012,2]
[421654508,1778031025000,810.06,0.00030137,120]
[421654536,1778031033000,-633.12665658,0.00013667,2]
[421654538,1778031033000,-132445.4439113,0.00013669,2]
[421654528,1778031033000,-153.12137068,0.00013599,2]
[421654537,1778031033000,-150.0,0.00013668,2]
[421654539,1778031033000,-4383.84691771,0.00013699,2]
[421654534,1778031033000,-2828.41635682,0.00013667,2]
[421654535,1778031033000,-4745.83293209,0.00013667,2]
[421654532,1778031033000,-300.0,0.00013666,2]
[421654533,1778031033000,-2134.70295005,0.00013667,2]
[421654530,1778031033000,-300.0,0.00013666,2]
[421654531,1778031033000,-1200.0,0.00013666,2]
[421654529,1778031033000,-150.0,0.00013645,2]
[421654525,1778031033000,-2289.38086849,0.000133,2]
[421654542,1778031033000,-150.0,0.00013724,2]
[421654523,1778031033000,-25.77781928,0.00012,2]
[421654526,1778031033000,-150.0,0.00013567,2]
[421654524,1778031033000,-638524.46212247,0.00012,2]
[421654522,1778031033000,-500.0,0.00011999,2]
[421654521,1778031033000,-500.0,0.00011999,2]
[421654520,1778031033000,-500.0,0.00011999,2]
[421654519,1778031033000,-500.0,0.00011999,2]
[421654518,1778031033000,-500.0,0.00011999,2]
[421654517,1778031033000,-372.92251961,0.00011999,2]
[421654515,1778031033000,-199.88583158,0.00011999,2]
[421654516,1778031033000,-339.42289432,0.00011999,2]
[421654513,1778031033000,-500.0,0.00011999,2]
[421654514,1778031033000,-500.0,0.00011999,2]
[421654527,1778031033000,-2500.0,0.00013568,2]
[421654540,1778031033000,-166.66,0.00013699,2]
[421654569,1778031033000,-250.0,0.00014,2]
[421654543,1778031033000,-186.54,0.00013771,2]
[421654541,1778031033000,-200.0,0.00013699,2]
[421654573,1778031033000,-500.0,0.00014073,2]
[421654566,1778031033000,-150.0,0.00013987,2]
[421654568,1778031033000,-9762.2254,0.00013992,2]
[421654572,1778031033000,-150.0,0.0001404,2]
[421654571,1778031033000,-13844.84599593,0.00014037,2]
[421654567,1778031033000,-1086.018,0.00013992,2]
[421654565,1778031033000,-150.0,0.00013987,2]
[421654563,1778031033000,-153.12137068,0.00013967,2]
[421654564,1778031033000,-150.0,0.00013987,2]
[421654561,1778031033000,-150.0,0.00013961,2]
[421654562,1778031033000,-153.12137068,0.00013967,2]
[421654560,1778031033000,-153.12137068,0.00013922,2]
[421654559,1778031033000,-153.12137068,0.00013922,2]
[421654570,1778031033000,-2894.42618724,0.00014019,2]
[421654556,1778031033000,-300.0,0.0001389,2]
[421654558,1778031033000,-424.80406011,0.0001389,2]
[421654549,1778031033000,-200.0,0.00013836,2]
[421654547,1778031033000,-600.0,0.0001382,2]
[421654546,1778031033000,-300.0,0.0001382,2]
[421654550,1778031033000,-748.03,0.0001386,2]
[421654545,1778031033000,-250.0,0.0001382,2]
[421654548,1778031033000,-600.0,0.0001382,2]
[421654551,1778031033000,-150.0,0.00013862,2]
[421654554,1778031033000,-150.0,0.00013882,2]
[421654555,1778031033000,-300.0,0.0001389,2]
[421654553,1778031033000,-517.94,0.00013871,2]
[421654557,1778031033000,-300.0,0.0001389,2]
[421654544,1778031033000,-150.0,0.00013803,2]
[421654598,1778031034000,-150.0,0.00014434,2]
[421654597,1778031034000,-788.34,0.00014384,2]
[421654600,1778031034000,-150.0,0.00014442,2]
[421654599,1778031034000,-549.40790296,0.00014436,2]
[421654601,1778031034000,-1220.99,0.00014456,2]
[421654602,1778031034000,-150.0,0.00014487,2]
[421654604,1778031034000,-150.0,0.00014487,2]
[421654603,1778031034000,-150.0,0.00014487,2]
[421654606,1778031034000,-150.0,0.00014513,2]
[421654608,1778031034000,-26597.7203,0.00014532,2]
[421654605,1778031034000,-1210.16,0.00014497,2]
[421654609,1778031034000,-186.54,0.00014536,2]
[421654610,1778031034000,-150.0,0.00014592,2]
[421654613,1778031034000,-600.0,0.000146,5]
[421654617,1778031034000,-788.34,0.00014658,2]
[421654612,1778031034000,-6043.0,0.000146,2]
[421654614,1778031034000,-150.0,0.00014612,2]
[421654611,1778031034000,-624.0,0.000146,2]
[421654607,1778031034000,-2000.0,0.00014516,2]
[421654596,1778031034000,-150.0,0.00014355,2]
[421654582,1778031034000,-132583.6781,0.00014095,2]
[421654593,1778031034000,-7057.01966632,0.0001427,2]
[421654574,1778031034000,-500.0,0.00014073,2]
[421654578,1778031034000,-500.0,0.00014073,2]
[421654576,1778031034000,-160.83763861,0.00014073,2]
[421654577,1778031034000,-500.0,0.00014073,2]
[421654575,1778031034000,-500.0,0.00014073,2]
[421654580,1778031034000,-500.45374323,0.00014073,2]
[421654579,1778031034000,-500.0,0.00014073,2]
[421654618,1778031034000,-150.0,0.00014671,2]
[421654583,1778031034000,-150.0,0.00014119,2]
[421654595,1778031034000,-338.63,0.00014299,2]
[421654581,1778031034000,-501.10461545,0.00014073,2]
[421654585,1778031034000,-748.03,0.00014183,2]
[421654586,1778031034000,-310.0,0.00014192,3]
[421654588,1778031034000,-500.0,0.00014194,2]
[421654589,1778031034000,-169.23831922,0.00014195,2]
[421654587,1778031034000,-500.0,0.00014193,2]
[421654590,1778031034000,-150.0,0.00014198,2]
[421654591,1778031034000,-150.0,0.00014237,2]
[421654592,1778031034000,-150.0,0.00014237,2]
[421654594,1778031034000,-150.0,0.00014276,2]
[421654584,1778031034000,-192.0,0.00014137,2]
[421654616,1778031034000,-1000.0,0.00014621,2]
[421654629,1778031034000,-500.0,0.00014699,2]
[421654619,1778031034000,-548.972765,0.00014689,2]
[421654634,1778031034000,-1300.0,0.000147,5]
[421654637,1778031034000,-157.0,0.00014749,2]
[421654647,1778031034000,-914.1313,0.0001485,2]
[421654646,1778031034000,-914.1313,0.0001485,2]
[421654650,1778031034000,-200.0,0.00014862,2]
[421654649,1778031034000,-197.94697929,0.00014856,2]
[421654615,1778031034000,-1002.53060532,0.00014621,2]
[421654653,1778031034000,-392.0,0.00014899,2]
[421654648,1778031034000,-194.05302071,0.00014856,2]
[421654652,1778031034000,-200.0,0.00014879,2]
[421654655,1778031034000,-1274.255,0.000149,2]
[421654656,1778031034000,-1221.0,0.000149,2]
[421654654,1778031034000,-150.0,0.000149,2]
[421654658,1778031034000,-5000.0,0.000149,2]
[421654659,1778031034000,-883.0342665,0.000149,2]
[421654662,1778031034000,-392.0,0.00014921,2]
[421654660,1778031034000,-2600.0,0.000149,5]
[421654661,1778031034000,-150.0,0.00014907,2]
[421654657,1778031034000,-1085.80481382,0.000149,2]
[421654640,1778031034000,-392.0,0.00014779,2]
[421654643,1778031034000,-392.0,0.00014814,2]
[421654651,1778031034000,-150.0,0.00014873,2]
[421654635,1778031034000,-392.0,0.00014732,2]
[421654641,1778031034000,-235.0,0.00014795,2]
[421654620,1778031034000,-500.0,0.00014699,2]
[421654623,1778031034000,-500.0,0.00014699,2]
[421654628,1778031034000,-500.0,0.00014699,2]
[421654625,1778031034000,-500.0,0.00014699,2]
[421654622,1778031034000,-500.0,0.00014699,2]
[421654627,1778031034000,-500.0,0.00014699,2]
[421654624,1778031034000,-500.0,0.00014699,2]
[421654626,1778031034000,-633.57617201,0.00014699,2]
[421654621,1778031034000,-500.0,0.00014699,2]
[421654631,1778031034000,-500.0,0.00014699,2]
[421654630,1778031034000,-500.0,0.00014699,2]
[421654642,1778031034000,-1900.0,0.000148,5]
[421654638,1778031034000,-150.0,0.0001475,2]
[421654636,1778031034000,-242.0,0.00014747,2]
[421654644,1778031034000,-150.0,0.00014829,2]
[421654639,1778031034000,-392.0,0.00014762,2]
[421654632,1778031034000,-500.0,0.00014699,2]
[421654633,1778031034000,-7739.79353157,0.000147,2]
[421654645,1778031034000,-914.13129,0.0001485,2]
[421654676,1778031035000,-150.0,0.00014986,2]
[421654678,1778031035000,-242.60053845,0.00014986,2]
[421654679,1778031035000,-392.0,0.00014989,2]
[421654675,1778031035000,-150.0,0.00014986,2]
[421654672,1778031035000,-419.73,0.00014985,2]
[421654673,1778031035000,-150.0,0.00014986,2]
[421654674,1778031035000,-223.61518874,0.00014986,2]
[421654671,1778031035000,-392.0,0.00014979,2]
[421654667,1778031035000,-392.0,0.00014964,2]
[421654669,1778031035000,-392.0,0.0001497,2]
[421654670,1778031035000,-500.0,0.00014973,2]
[421654668,1778031035000,-392.0,0.00014965,2]
[421654666,1778031035000,-392.0,0.00014957,2]
[421654665,1778031035000,-392.0,0.00014948,2]
[421654663,1778031035000,-672.01,0.00014932,2]
[421654664,1778031035000,-392.0,0.00014946,2]
[421654677,1778031035000,-253.82744391,0.00014986,2]
[421654682,1778031035000,-151.0,0.00014997,2]
[421654680,1778031035000,-6440.02377461,0.00014989,2]
[421654681,1778031035000,-201.34741483,0.0001499,2]
[421654698,1778031035000,-2684.69129088,0.00015,2]
[421654699,1778031035000,-557.5122,0.00015,2]
[421654696,1778031035000,-500.0,0.00011999,2]
[421654697,1778031035000,-500.0,0.00011999,2]
[421654695,1778031035000,-526.90058265,0.00011999,2]
[421654692,1778031035000,-98711.60572726,0.00015,2]
[421654694,1778031035000,-1254.41808677,0.00015,2]
[421654693,1778031035000,-85160.3721012,0.00015,2]
[421654700,1778031035000,-2769.66149264,0.00015,2]
[421654689,1778031035000,-623.0,0.00015,5]
[421654691,1778031035000,-7405.28992533,0.00015,2]
[421654683,1778031035000,-500.0,0.00014999,2]
[421654685,1778031035000,-500.0,0.00014999,2]
[421654684,1778031035000,-500.0,0.00014999,2]
[421654687,1778031035000,-155.0,0.00014999,2]
[421654688,1778031035000,-805.0,0.00015,5]
[421654686,1778031035000,-500.0,0.00014999,2]
[421654690,1778031035000,-926.0,0.00015,5]
[421654702,1778031038000,-500.0,0.00011999,2]
[421654701,1778031038000,-500.0,0.00011999,2]
[421654703,1778031038000,-500.0,0.00011999,2]
[421654704,1778031038000,-500.0,0.00011999,2]
[421654706,1778031038000,-500.0,0.00011999,2]
[421654708,1778031038000,-151.0,0.00014921,2]
[421654709,1778031038000,-152384.07245329,0.00015,2]
[421654707,1778031038000,-5166.95361514,0.000147,2]
[421654705,1778031038000,-500.0,0.00011999,2]
[421654919,1778031040000,-9617.69284702,0.00015,2]
[421655118,1778031042000,394.95055628,7.888e-05,2]
[421655104,1778031042000,-65.73966005,0.00014531,2]
[421655280,1778031043000,-1678.9179028,0.00014957,2]
[421655274,1778031043000,-434.26033995,0.00014531,2]
[421655276,1778031043000,-3451.72700419,0.000147,2]
[421655278,1778031043000,-3625.0,0.000149,2]
[421655286,1778031043000,-215426.87307257,0.00015,2]
[421655291,1778031043000,-888.46004147,0.00015,2]
[421655341,1778031043000,-993.80145634,0.00015,2]
[421655284,1778031043000,-503.16082106,0.00014999,2]
[421655293,1778031043000,-722.8955016,0.00015,2]
[421655338,1778031043000,-556.29419935,0.00015,2]
[421655432,1778031044000,-1208.68179918,0.00015,2]
[421655650,1778031046000,-5129.0,0.00015,2]
[421655648,1778031046000,-14065.44732926,0.00015,2]
[421655652,1778031046000,-487.22990958,0.00015,2]
[421655654,1778031046000,-3870.49728429,0.00015,2]
[421655656,1778031046000,-51925.49358182,0.00015,2]
[421655608,1778031046000,-1988.74537169,0.00015,2]
[421655658,1778031046000,-26814.96982723,0.00015,2]
[421655933,1778031170000,9680.81496264,0.00011255,7]
[421655935,1778031307000,243.0,0.00030136,120]
[421655936,1778031459000,421.0,0.00030136,120]
[421655937,1778031488000,16262.20037169,0.00030136,120]
[421655938,1778031501000,911.0,0.0003,120]
[421655939,1778031528000,7306.60814413,0.0003013,120]
[421655940,1778031552000,565.0,0.00030137,120]
[421655942,1778031650000,1622.67,0.00030137,120]
[421655947,1778031782000,292.67,7.303e-05,2]
[421655946,1778031782000,292.67,6.986e-05,2]
[421655945,1778031782000,292.67,6.668e-05,2]
[421655944,1778031782000,292.67,6.351e-05,2]
[421655943,1778031782000,292.67,6.033e-05,2]
[421655950,1778031783000,292.67,8.256e-05,2]
[421655949,1778031783000,292.67,7.938e-05,2]
[421655948,1778031783000,292.67,7.621e-05,2]
[421655951,1778031787000,-255.67234624,8.573e-05,2]
[421655952,1778031938000,-36.99765376,8.573e-05,2]
[421655954,1778031938000,-292.67,9.208e-05,2]
[421655953,1778031938000,-292.67,8.891e-05,2]
[421655955,1778031938000,-253.37520136,9.431e-05,2]
[421655956,1778031938000,-250.0,9.431e-05,2]